fUST/lending_fUST_20240730
["ID","MTS","AMOUNT","RATE_DAILY","PERIOD"]
[333601333,1722274244206,-200.0,0.00012986,2]
[333601335,1722274244215,-2083.56989972,0.00012989,2]
[333601338,1722274244226,-22919.2688969,0.00012989,2]
[333601340,1722274244235,-7587.80954326,0.00012999,5]
[333601342,1722274244246,-490215.27429042,0.00012999,2]
[333601822,1722274368984,-1000.0,0.00013,13]
[333601823,1722274369122,-1000.0,0.00015,15]
[333601824,1722274369246,-1000.0,0.00017,17]
[333601825,1722274369320,-1000.0,0.00019,19]
[333601826,1722274369367,-154.63660398,0.0002,15]
[333601827,1722274369405,-1000.0,0.00021,21]
[333601828,1722274369442,-58992.61,0.00022,14]
[333601829,1722274369475,-1000.0,0.00023,23]
[333601830,1722274369506,-4342.64079325,0.00024,30]
[333601831,1722274369537,-58992.61,0.000245,14]
[333601832,1722274369570,-200.0,0.00024658,15]
[333601833,1722274369605,-1000.0,0.00025,25]
[333601834,1722274369639,-150.112233,0.00026,10]
[333601835,1722274369671,-362.8482192,0.00026,30]
[333601836,1722274369711,-153.27,0.000266,31]
[333601837,1722274369747,-153.27,0.000266,31]
[333601838,1722274369782,-153.27,0.000266,31]
[333601839,1722274369813,-58992.61,0.000267,14]
[333601840,1722274369849,-153.27,0.000269,31]
[333601841,1722274369883,-153.27,0.000269,31]
[333601842,1722274369919,-153.27,0.000269,31]
[333601843,1722274369953,-1000.0,0.00027,27]
[333601844,1722274369987,-153.27,0.000272,31]
[333601845,1722274370022,-153.27,0.000272,31]
[333601846,1722274370209,-153.27,0.000272,31]
[333601847,1722274370237,-153.27,0.000272,31]
[333601848,1722274370265,-4151.668556,0.00027397,120]
[333601849,1722274370290,-153.27,0.000275,31]
[333601850,1722274370316,-153.27,0.000275,31]
[333601851,1722274370341,-153.27,0.000275,31]
[333601852,1722274370367,-153.27,0.000275,31]
[333601853,1722274370393,-1246756.54505971,0.00027643,60]
[333601854,1722274370419,-153.27,0.000279,31]
[333601855,1722274370445,-153.27,0.000279,31]
[333601856,1722274370470,-153.27,0.000279,31]
[333601857,1722274370495,-153.27,0.000279,31]
[333601858,1722274370522,-153.27,0.000279,31]
[333601859,1722274370547,-153.27,0.000279,31]
[333601860,1722274370571,-160.0,0.00028,10]
[333601861,1722274370598,-58992.61,0.000298,14]
[333601862,1722274370622,-616.0,0.0003,10]
[333601863,1722274370647,-29586.55975964,0.0003,15]
[333601864,1722274370671,-59338.37480707,0.0003,10]
[333601865,1722274370697,-151.0,0.0003,120]
[333601866,1722274370721,-151.0,0.0003,120]
[333601867,1722274370761,-1000.0,0.00030797,14]
[333601868,1722274370790,-1000.0,0.00030797,14]
[333601869,1722274370819,-1000.0,0.00030797,14]
[333601870,1722274370842,-1000.0,0.00030797,14]
[333601871,1722274370865,-1000.0,0.00030797,14]
[333601872,1722274370889,-1000.0,0.00030797,14]
[333601873,1722274370916,-1000.0,0.00030797,14]
[333601874,1722274370941,-1000.0,0.00030797,14]
[333601875,1722274370966,-1000.0,0.00030797,14]
[333601876,1722274370990,-1000.0,0.00030797,14]
[333601877,1722274371016,-1000.0,0.00030797,14]
[333601878,1722274371042,-1000.0,0.00030797,14]
[333601879,1722274371068,-1000.0,0.00030797,14]
[333601880,1722274371092,-1000.0,0.00030797,14]
[333601881,1722274371117,-1000.0,0.00030797,14]
[333601882,1722274371141,-1000.0,0.00030797,14]
[333601883,1722274371165,-1000.0,0.00030797,14]
[333601884,1722274371188,-1000.0,0.00030797,14]
[333601885,1722274371211,-1000.0,0.00030797,14]
[333601886,1722274371234,-1000.0,0.00030797,14]
[333601887,1722274371263,-1000.0,0.00030797,14]
[333601888,1722274371287,-1000.0,0.00030797,14]
[333601889,1722274371314,-1000.0,0.00030797,14]
[333601890,1722274371337,-1000.0,0.00030797,14]
[333601891,1722274371360,-1000.0,0.00030797,14]
[333601892,1722274371384,-1000.0,0.00030797,14]
[333601893,1722274371408,-1000.0,0.00030797,14]
[333601894,1722274371433,-1000.0,0.00030797,14]
[333601895,1722274371456,-1000.0,0.00030797,14]
[333601896,1722274371555,-1000.0,0.00030797,14]
[333601897,1722274371579,-1000.0,0.00030797,14]
[333601898,1722274371607,-1000.0,0.00030797,14]
[333601899,1722274371631,-1000.0,0.00030797,14]
[333601900,1722274371655,-1000.0,0.00030797,14]
[333601901,1722274371681,-1000.0,0.00030797,14]
[333601902,1722274371705,-1000.0,0.00030797,14]
[333601903,1722274371730,-1000.0,0.00030797,14]
[333601904,1722274371756,-1000.0,0.00030797,14]
[333601905,1722274371787,-1000.0,0.00030797,14]
[333601906,1722274371810,-1000.0,0.00030797,14]
[333601907,1722274371832,-1000.0,0.00030797,14]
[333601908,1722274371855,-1000.0,0.00030797,14]
[333601909,1722274371881,-1000.0,0.00030797,14]
[333601910,1722274371906,-1000.0,0.00030797,14]
[333601911,1722274371931,-1000.0,0.00030797,14]
[333601912,1722274371957,-1000.0,0.00030797,14]
[333601913,1722274371981,-1000.0,0.00030797,14]
[333601914,1722274372006,-1000.0,0.00030797,14]
[333601915,1722274372034,-1000.0,0.00030797,14]
[333601916,1722274372059,-1000.0,0.00030797,14]
[333601917,1722274372082,-1000.0,0.00030797,14]
[333601918,1722274372106,-1000.0,0.00030797,14]
[333601919,1722274372130,-1000.0,0.00030797,14]
[333601920,1722274372154,-1000.0,0.00030797,14]
[333601921,1722274372178,-1000.0,0.00030797,14]
[333601922,1722274372201,-1000.0,0.00030797,14]
[333601923,1722274372225,-1000.0,0.00030797,14]
[333601924,1722274372249,-1000.0,0.00030797,14]
[333601925,1722274372273,-1000.0,0.00030797,14]
[333601926,1722274372297,-1000.0,0.00030797,14]
[333601927,1722274372320,-1000.0,0.00030797,14]
[333601928,1722274372344,-1000.0,0.00030797,14]
[333601929,1722274372366,-1000.0,0.00030797,14]
[333601930,1722274372389,-933.699229,0.00030797,14]
[333601931,1722274372414,-4151.668556,0.00031963,120]
[333601932,1722274372437,-2116.97816488,0.00032328,26]
[333601933,1722274372461,-151.0,0.00032493,120]
[333601934,1722274372485,-2116.97816488,0.00032651,26]
[333601935,1722274372517,-58992.61,0.000329,14]
[333601936,1722274372542,-2086.21043061,0.00032974,26]
[333601937,1722274372567,-1273.55577004,0.00033,120]
[333601938,1722274372593,-200.0,0.00034,10]
[333601939,1722274372618,-2145.81061218,0.00034,12]
[333601940,1722274372643,-2708.03668714,0.000342,30]
[333601941,1722274372667,-5501.56884897,0.000345,120]
[333601942,1722274372691,-151.0,0.00034603,120]
[333601943,1722274372715,-1284.89740933,0.00034728,12]
[333601944,1722274372739,-151.0,0.00034986,120]
[333601945,1722274372762,-363.26442253,0.00035,10]
[333601946,1722274372785,-10016.52813215,0.00035,14]
[333601947,1722274372808,-164.66389697,0.00035,120]
[333601948,1722274372831,-24208.45860045,0.00035,30]
[333601949,1722274372854,-265101.99987815,0.00035,30]
[333601950,1722274372877,-499999.0,0.00035,30]
[333601951,1722274372900,-58992.61,0.000356,14]
[333601952,1722274372925,-19569.94923421,0.00036,30]
[333601953,1722274372949,-200.0,0.00036402,120]
[333601954,1722274372972,-4151.668556,0.0003653,120]
[333601955,1722274372994,-3638.87038963,0.00037,30]
[333601956,1722274373019,-2708.03668714,0.000372,30]
[333601957,1722274373042,-200.0,0.00037353,120]
[333601958,1722274373071,-151.0,0.00037479,120]
[333601959,1722274373095,-58992.61,0.000375,14]
[333601960,1722274373119,-12149.98130519,0.000377,30]
[333601961,1722274373144,-602.41866422,0.00038,10]
[333601962,1722274373168,-17105.45279963,0.00038484,15]
[333601963,1722274373193,-200.0,0.00038537,120]
[333601964,1722274373217,-150.0,0.00039,19]
[333601965,1722274373241,-154.97,0.00039,30]
[333601966,1722274373267,-150.112233,0.00039,10]
[333601967,1722274373290,-252.73072586,0.000392,10]
[333601968,1722274373314,-151.0,0.00039205,120]
[333601969,1722274373456,-1000.0,0.000398,40]
[333601970,1722274373481,-10000.0,0.000399,120]
[333601971,1722274373505,-4913.84,0.000399,30]
[333601972,1722274373533,-151.0,0.00039973,120]
[333601973,1722274373561,-151.0,0.0003999,14]
[333601974,1722274373586,-192.80172319,0.0004,120]
[333601975,1722274373615,-400.0,0.0004,120]
[333601976,1722274373641,-257617.9376676,0.0004,15]
[333601977,1722274373669,-5000.0,0.0004,120]
[333601978,1722274373696,-150.0,0.0004,21]
[333601979,1722274373720,-775445.60206136,0.0004,15]
[333601980,1722274373744,-2875.89376082,0.0004,15]
[333601981,1722274373770,-1000000.0,0.0004,30]
[333601982,1722274373795,-5998.29345498,0.0004,120]
[333601983,1722274373819,-39292.36792271,0.0004,30]
[333601984,1722274373843,-6552.4041437,0.0004,50]
[333601985,1722274373869,-8075.86495655,0.0004,120]
[333601986,1722274373896,-2208.28917633,0.0004,120]
[333601987,1722274373920,-5384.0,0.0004,120]
[333601988,1722274373946,-4640.0,0.0004,120]
[333601989,1722274373972,-151.0,0.0004,14]
[333601990,1722274373997,-151.0,0.0004,14]
[333601991,1722274374023,-151.0,0.0004,14]
[333601992,1722274374047,-151.0,0.0004,14]
[333601993,1722274374070,-151.0,0.0004,14]
[333601994,1722274374094,-1791.083957,0.0004,14]
[333601995,1722274374118,-1791.083957,0.0004,14]
[333601996,1722274374142,-1791.083957,0.0004,14]
[333601997,1722274374166,-1791.083962,0.0004,14]
[333601998,1722274374189,-151.0,0.0004,14]
[333601999,1722274374212,-151.0,0.0004,14]
[333602000,1722274374236,-152.791032,0.0004,14]
[333602001,1722274374262,-194.276593,0.0004,14]
[333602002,1722274374285,-194.276595,0.0004,14]
[333602003,1722274374309,-151.0,0.0004,14]
[333602004,1722274374332,-151.0,0.0004,14]
[333602005,1722274374355,-215.972634,0.0004,14]
[333602006,1722274374378,-106189.83270318,0.0004,30]
[333602007,1722274374401,-332.28637338,0.0004,120]
[333602008,1722274374426,-215.972636,0.0004,14]
[333602009,1722274374450,-34434.39530319,0.0004,30]
[333602014,1722274421425,-96963.79611041,0.00030222,15]
[333602015,1722274421451,-230.5613148,0.00030222,30]
[333602016,1722274421474,-344341.56611226,0.00030222,30]
[333602017,1722274421498,-200000.0073243,0.00030222,30]
[333602018,1722274421522,-40065.49638556,0.00030222,120]
[333602019,1722274421549,-260.57937861,0.00030222,120]
[333602020,1722274421572,-24784.1249717,0.00030222,30]
[333602021,1722274421596,-5640.33460664,0.00030222,30]
[333602022,1722274421622,-362.21558355,0.00030222,30]
[333602023,1722274421646,-29201.05380217,0.00030222,120]
[333602024,1722274421671,-3419.52170008,0.00030222,120]
[333602025,1722274421696,-339999.71292982,0.00030222,30]
[333602026,1722274421722,-5194.45720364,0.00030222,120]
[333602027,1722274421747,-151.14744477,0.00030222,120]
[333602028,1722274421771,-1357.01823695,0.00030222,30]
[333602029,1722274421799,-10000.0,0.00030222,90]
[333602030,1722274421823,-2529.00479176,0.00030222,120]
[333602031,1722274421848,-63581.63822031,0.00030222,30]
[333602032,1722274421981,-200.00245061,0.00030222,30]
[333602033,1722274422007,-402.41,0.00030222,120]
[333602034,1722274422034,-75254.0,0.00030222,32]
[333602035,1722274422061,-1146.28127783,0.00030222,30]
[333602036,1722274422084,-242.09550304,0.00030222,30]
[333602037,1722274422107,-100000.0,0.00030222,20]
[333602038,1722274422131,-100000.0,0.00030222,20]
[333602039,1722274422154,-100000.0,0.00030222,10]
[333602040,1722274422178,-100000.0,0.00030222,10]
[333602041,1722274422202,-100000.0,0.00030222,30]
[333602042,1722274422226,-100000.0,0.00030222,30]
[333602043,1722274422250,-100000.0,0.00030222,30]
[333602044,1722274422273,-46287.64450326,0.00030222,10]
[333602045,1722274422299,-98401.0,0.00030222,30]
[333602046,1722274422323,-864.14302222,0.00030222,30]
[333602047,1722274422346,-19336.19160247,0.00030222,120]
[333602048,1722274422370,-382.01429335,0.00030222,120]
[333602049,1722274422394,-214.35368564,0.00030222,120]
[333602050,1722274422417,-464.6019668,0.00030222,60]
[333602051,1722274422441,-238.8366372,0.00030222,120]
[333602052,1722274422466,-469.07423505,0.00030222,120]
[333602053,1722274422489,-5306.36479169,0.00030222,30]
[333602054,1722274422512,-5000.0,0.00030222,120]
[333602055,1722274422536,-877708.74991351,0.00030222,35]
[333602057,1722274429432,-1935785.53803811,0.00030222,35]
[333602058,1722274429458,-9747.42144364,0.00030222,120]
[333602059,1722274429483,-60319.74547646,0.00030222,120]
[333602060,1722274429509,-200.0,0.00030222,10]
[333602061,1722274429533,-4999.9999,0.00030222,120]
[333602062,1722274429559,-15790.36556,0.00030222,120]
[333602063,1722274429583,-189.981221,0.00030222,30]
[333602064,1722274429608,-150.0,0.00030222,30]
[333602065,1722274429633,-297.072018,0.00030222,30]
[333602072,1722274689733,287.62828496,0.0001,2]
[333602073,1722274709861,156.4756886,9.999e-05,2]
[333602074,1722274718959,521.86930577,9.999e-05,2]
[333602075,1722274724186,288.38381138,9.999e-05,2]
[333602076,1722274726167,531.74310439,9.999e-05,2]
[333602077,1722274726200,253.533236,9.999e-05,2]
[333602078,1722274729429,341.87248912,9.999e-05,2]
[333602079,1722274733261,727.15120451,9.999e-05,2]
[333602080,1722274733361,413.70152675,9.999e-05,2]
[333602081,1722274734710,309.3349299,9.999e-05,2]
[333602082,1722274736942,444.48205735,9.999e-05,2]
[333602083,1722274738583,154.86308045,9.999e-05,2]
[333602084,1722274739068,178.30906711,9.999e-05,2]
[333602085,1722274740781,403.39616838,9.999e-05,2]
[333602086,1722274741442,600.54687138,9.999e-05,2]
[333602087,1722274742155,779.26353149,9.999e-05,2]
[333602088,1722274743635,248.87416602,9.999e-05,2]
[333602089,1722274750224,498.20643236,9.999e-05,2]
[333602121,1722274754842,16018.3201662,9.999e-05,2]
[333602122,1722274755693,221.03301182,9.999e-05,2]
[333602123,1722274756480,154.71377951,9.999e-05,2]
[333602124,1722274758037,2106.31551891,9.999e-05,2]
[333602125,1722274758726,1625.30319851,9.999e-05,2]
[333602126,1722274759540,731.30595831,9.999e-05,2]
[333602127,1722274759574,240.59744191,9.999e-05,2]
[333602128,1722274759716,218.09499306,9.999e-05,2]
[333602129,1722274759842,3776.426534,9.999e-05,2]
[333602130,1722274760546,568.27807593,9.999e-05,2]
[333602131,1722274761605,404.41023413,9.999e-05,2]
[333602132,1722274763048,154.80649189,9.999e-05,2]
[333602133,1722274763381,256.44909071,9.999e-05,2]
[333602134,1722274763717,193.77561138,9.999e-05,2]
[333602135,1722274765494,154.85752887,9.999e-05,2]
[333602136,1722274770167,188.0737834,9.999e-05,2]
[333602138,1722274775431,941.81566876,9.999e-05,2]
[333602139,1722274775663,157.67039442,9.999e-05,2]
[333602140,1722274775918,307.01136119,9.999e-05,2]
[333602141,1722274776164,233.4520836,9.999e-05,2]
[333602142,1722274777134,156.59792059,9.999e-05,2]
[333602143,1722274778722,209.69045866,9.999e-05,2]
[333602144,1722274778866,533.65002993,9.999e-05,2]
[333602145,1722274781181,304.336953,9.999e-05,2]
[333602146,1722274782887,519.32929432,9.999e-05,2]
[333602147,1722274783776,156.05197447,9.999e-05,2]
[333602148,1722274786134,154.81751879,9.999e-05,2]
[333602149,1722274786466,154.71377951,9.999e-05,2]
[333602150,1722274790227,356.27266566,9.999e-05,2]
[333602151,1722274792252,154.71377951,9.999e-05,2]
[333602152,1722274793879,155.0383145,9.999e-05,2]
[333602153,1722274796902,521.48345551,9.999e-05,2]
[333602154,1722274805543,154.80649189,9.999e-05,2]
[333602155,1722274809791,966.74099757,8.399e-05,2]
[333602156,1722274810920,637.33704988,8.819e-05,2]
[333602157,1722274812129,620.86685249,9.26e-05,2]
[333602158,1722274829764,726.78239755,9.999e-05,2]
[333602159,1722274833056,531.3526561,9.999e-05,2]
[333602160,1722274838198,288.23585933,9.999e-05,2]
[333602161,1722274839392,413.4895288,9.999e-05,2]
[333602162,1722274853563,599.93120871,9.999e-05,2]
[333602163,1722274862435,341.37261401,9.999e-05,2]
[333602164,1722274867302,156.73778613,9.999e-05,2]
[333602165,1722274869911,519.31266227,9.999e-05,2]
[333602166,1722274871160,778.86793628,9.999e-05,2]
[333602167,1722274875643,567.89520106,9.999e-05,2]
[333602168,1722274891236,395.01268747,9.999e-05,2]
[333602169,1722274893887,533.37987222,9.999e-05,2]
[333602170,1722274967873,157.08880858,9.999e-05,2]
[333602171,1722275032892,201.37315589,9.999e-05,2]
[333602172,1722275046791,154.71377951,9.999e-05,2]
[333602173,1722275061800,154.71377951,9.999e-05,2]
[333602176,1722275133879,154.71377951,9.999e-05,2]
[333602177,1722275140906,201.37315589,9.999e-05,2]
[333602178,1722275169817,319.56299016,9.999e-05,2]
[333602202,1722275225914,201.17119488,9.999e-05,2]
[333602252,1722275248397,154.88374449,9.999e-05,2]
[333602253,1722275279500,154.86073047,9.999e-05,2]
[333602279,1722275296909,319.56299016,9.999e-05,2]
[333602280,1722275312308,154.72922386,9.999e-05,2]
[333602285,1722275404817,379.80158965,9.999e-05,2]
[333602286,1722275415829,240.1752288,9.999e-05,2]
[333602311,1722275433553,-300.0,0.00011646,2]
[333602313,1722275433563,-300.0,0.00011646,2]
[333602315,1722275433573,-2555.10780155,0.00011647,2]
[333602317,1722275433586,-2517.768071,0.00011647,2]
[333602320,1722275433599,-5509.18411006,0.00011647,2]
[333602322,1722275433612,-1155.20154369,0.00011647,2]
[333602324,1722275433624,-12026.2620733,0.00011647,2]
[333602371,1722275438457,-1136.4764004,0.00011647,2]
[333602372,1722275438467,-178.199728,0.00011809,2]
[333602373,1722275438477,-178.199728,0.00012116,2]
[333602374,1722275438487,-178.199728,0.00012424,2]
[333602375,1722275438497,-294.0793213,0.000127,2]
[333602376,1722275438506,-206.8246195,0.000127,2]
[333602377,1722275438515,-294.0793213,0.000127,2]
[333602378,1722275438525,-420.0,0.0001279,2]
[333602379,1722275438534,-420.0,0.00012811,2]
[333602380,1722275438544,-306.464297,0.000129,2]
[333602381,1722275438553,-206.8246195,0.000129,2]
[333602382,1722275438563,-153.0,0.000129,2]
[333602383,1722275438572,-294.0793213,0.000129,2]
[333602384,1722275438582,-200.0,0.00012986,2]
[333602385,1722275438591,-998.20323418,0.00012998,2]
[333602386,1722275438601,-998.20323418,0.00012998,2]
[333602387,1722275438610,-4182.84339277,0.00012999,2]
[333602408,1722275439526,-51698.79266458,0.00012999,2]
[333602409,1722275439539,-150.112233,0.00013,2]
[333602410,1722275439552,-200.0,0.00013,2]
[333602411,1722275439564,-150.112233,0.000131,2]
[333602412,1722275439575,-150.112233,0.000131,2]
[333602413,1722275439592,-150.112233,0.000132,2]
[333602414,1722275439605,-150.112233,0.000133,2]
[333602415,1722275439619,-150.112233,0.000133,2]
[333602416,1722275439632,-150.112233,0.000134,2]
[333602417,1722275439645,-150.112233,0.000135,2]
[333602418,1722275439659,-2442.56878939,0.00013598,2]
[333602419,1722275439671,-2000.0,0.00013598,2]
[333602420,1722275439683,-150.112233,0.000136,2]
[333602421,1722275439696,-150.112233,0.000136,2]
[333602422,1722275439709,-150.112233,0.000136,2]
[333602423,1722275439721,-150.112233,0.000136,2]
[333602424,1722275439733,-150.112233,0.000136,2]
[333602425,1722275439746,-198.6237069,0.000136,2]
[333602426,1722275439757,-69988.8214986,0.00013688,2]
[333602427,1722275439769,-279955.285994,0.00013688,2]
[333602428,1722275439781,-6615.9870045,0.00013698,5]
[333602429,1722275439793,-373.41010582,0.00013698,2]
[333602430,1722275439805,-500.0,0.00013698,2]
[333602431,1722275439817,-500.0,0.00013698,2]
[333602432,1722275439835,-396.64163245,0.00013698,2]
[333602433,1722275439847,-500.0,0.00013698,2]
[333602434,1722275439859,-180.0,0.00013698,2]
[333602435,1722275439871,-500.0,0.00013698,2]
[333602436,1722275439883,-500.0,0.00013698,2]
[333602437,1722275439899,-500.0,0.00013698,2]
[333602438,1722275439912,-500.0,0.00013698,2]
[333602439,1722275439925,-403.47936173,0.00013698,2]
[333602440,1722275439939,-500.0,0.00013698,2]
[333602441,1722275439951,-482.85735499,0.00013698,2]
[333602444,1722275439963,-222.40684569,0.00013698,2]
[333602446,1722275439976,-188.85894057,0.00013698,2]
[333602460,1722275439989,-500.0,0.00013698,2]
[333602461,1722275440134,-500.0,0.00013698,2]
[333602462,1722275440144,-500.0,0.00013698,2]
[333602463,1722275440154,-500.0,0.00013698,2]
[333602465,1722275440164,-500.0,0.00013698,2]
[333602466,1722275440173,-191.84915598,0.00013698,2]
[333602467,1722275440183,-300.0,0.00013698,2]
[333602468,1722275440192,-167.72406527,0.00013698,2]
[333602469,1722275440202,-500.0,0.00013698,2]
[333602470,1722275440211,-500.0,0.00013698,2]
[333602471,1722275440221,-500.0,0.00013698,2]
[333602472,1722275440231,-286.75239681,0.00013698,2]
[333602473,1722275440240,-500.0,0.00013698,2]
[333602474,1722275440250,-500.0,0.00013698,2]
[333602475,1722275440259,-500.0,0.00013698,2]
[333602476,1722275440269,-500.0,0.00013698,2]
[333602477,1722275440279,-486.44577265,0.00013698,2]
[333602478,1722275440288,-497.6781471,0.00013698,2]
[333602479,1722275440298,-500.0,0.00013698,2]
[333602480,1722275440308,-500.0,0.00013698,2]
[333602481,1722275440319,-259.87240032,0.00013698,2]
[333602482,1722275440329,-500.0,0.00013698,2]
[333602483,1722275440339,-500.0,0.00013698,2]
[333602484,1722275440349,-507.81502504,0.00013698,2]
[333602485,1722275440361,-500.0,0.00013698,2]
[333602486,1722275440370,-500.0,0.00013698,2]
[333602487,1722275440380,-500.0,0.00013698,2]
[333602488,1722275440396,-500.0,0.00013698,2]
[333602489,1722275440405,-500.0,0.00013698,2]
[333602490,1722275440415,-500.0,0.00013698,2]
[333602492,1722275440425,-500.0,0.00013698,2]
[333602494,1722275440434,-503.50330295,0.00013698,2]
[333602496,1722275440445,-500.0,0.00013698,2]
[333602498,1722275440454,-502.38333647,0.00013698,2]
[333602500,1722275440464,-631.92329421,0.00013698,2]
[333602501,1722275440474,-500.0,0.00013698,2]
[333602502,1722275440484,-500.0,0.00013698,2]
[333602503,1722275440494,-500.0,0.00013698,2]
[333602504,1722275440504,-500.0,0.00013698,2]
[333602505,1722275440513,-518.48705713,0.00013698,2]
[333602506,1722275440524,-500.0,0.00013698,2]
[333602507,1722275440533,-232.48993703,0.00013698,2]
[333602508,1722275440542,-500.0,0.00013698,2]
[333602509,1722275440552,-254.86600932,0.00013698,2]
[333602510,1722275440561,-500.0,0.00013698,2]
[333602511,1722275440571,-500.0,0.00013698,2]
[333602512,1722275440580,-500.0,0.00013698,2]
[333602513,1722275440590,-521.9836008,0.00013698,2]
[333602514,1722275440599,-500.0,0.00013698,2]
[333602515,1722275440608,-500.0,0.00013698,2]
[333602516,1722275440617,-500.0,0.00013698,2]
[333602517,1722275440627,-500.0,0.00013698,2]
[333602518,1722275440640,-500.0,0.00013698,2]
[333602519,1722275440649,-504.08529359,0.00013698,2]
[333602520,1722275440658,-500.0,0.00013698,2]
[333602521,1722275440668,-500.98111871,0.00013698,2]
[333602522,1722275440677,-501.24379968,0.00013698,2]
[333602523,1722275440686,-500.0,0.00013698,2]
[333602524,1722275440696,-500.0,0.00013698,2]
[333602525,1722275440705,-500.0,0.00013698,2]
[333602526,1722275440714,-500.0,0.00013698,2]
[333602527,1722275440724,-500.0,0.00013698,2]
[333602528,1722275440733,-500.0,0.00013698,2]
[333602529,1722275440742,-500.0,0.00013698,2]
[333602530,1722275440751,-500.0,0.00013698,2]
[333602531,1722275440760,-500.0,0.00013698,2]
[333602532,1722275440769,-500.0,0.00013698,2]
[333602533,1722275440779,-500.0,0.00013698,2]
[333602534,1722275440788,-453.56132182,0.00013698,2]
[333602535,1722275440797,-500.0,0.00013698,2]
[333602536,1722275440806,-500.0,0.00013698,2]
[333602537,1722275440816,-500.0,0.00013698,2]
[333602538,1722275440825,-309.79069733,0.00013698,2]
[333602539,1722275440834,-500.0,0.00013698,2]
[333602540,1722275440844,-500.0,0.00013698,2]
[333602541,1722275440853,-500.0,0.00013698,2]
[333602542,1722275440862,-500.0,0.00013698,2]
[333602543,1722275440879,-500.6897106,0.00013698,2]
[333602544,1722275440898,-513.52323146,0.00013698,2]
[333602545,1722275440908,-500.0,0.00013698,2]
[333602546,1722275440918,-500.0,0.00013698,2]
[333602547,1722275440928,-500.0,0.00013698,2]
[333602548,1722275440938,-500.0,0.00013698,2]
[333602549,1722275440948,-500.0,0.00013698,2]
[333602550,1722275440958,-500.0,0.00013698,2]
[333602551,1722275440969,-500.0,0.00013698,2]
[333602552,1722275440979,-500.0,0.00013698,2]
[333602553,1722275440989,-500.0,0.00013698,2]
[333602554,1722275440999,-500.0,0.00013698,2]
[333602555,1722275441009,-500.0,0.00013698,2]
[333602556,1722275441019,-500.0,0.00013698,2]
[333602557,1722275441030,-500.0,0.00013698,2]
[333602558,1722275441041,-528.36085099,0.00013698,2]
[333602559,1722275441050,-500.0,0.00013698,2]
[333602560,1722275441060,-500.0,0.00013698,2]
[333602561,1722275441070,-500.0,0.00013698,2]
[333602562,1722275441080,-150.80651626,0.00013698,2]
[333602563,1722275441089,-500.0,0.00013698,2]
[333602564,1722275441099,-500.0,0.00013698,2]
[333602565,1722275441108,-500.0,0.00013698,2]
[333602566,1722275441119,-500.0,0.00013698,2]
[333602567,1722275441129,-500.0,0.00013698,2]
[333602568,1722275441142,-500.0,0.00013698,2]
[333602569,1722275441152,-500.0,0.00013698,2]
[333602570,1722275441164,-500.0,0.00013698,2]
[333602571,1722275441174,-500.0,0.00013698,2]
[333602572,1722275441184,-500.0,0.00013698,2]
[333602573,1722275441194,-500.0,0.00013698,2]
[333602574,1722275441204,-500.0,0.00013698,2]
[333602575,1722275441215,-500.0,0.00013698,2]
[333602576,1722275441226,-500.0,0.00013698,2]
[333602577,1722275441237,-500.0,0.00013698,2]
[333602578,1722275441248,-512.14190094,0.00013698,2]
[333602579,1722275441260,-500.0,0.00013698,2]
[333602580,1722275441270,-522.27126231,0.00013698,2]
[333602581,1722275441280,-500.0,0.00013698,2]